bitfinex-derivatives/quotes_BTCF0:USTF0_20251225
["timestamp","ask_amount","ask_price","bid_price","bid_amount"]
[1766679060707,0.04063431,88289.0,88278.0,0.0113357]
[1766679061020,0.0113345,88288.0,88278.0,0.03]
[1766679061221,0.02694653,88287.0,88274.0,0.0113362]
[1766679061415,0.02694653,88286.0,88274.0,0.0413362]
[1766679061724,0.02694653,88285.0,88274.0,0.0413362]
[1766679062020,0.02694653,88284.0,88274.0,0.0413362]
[1766679062213,0.02694653,88283.0,88274.0,0.0413362]
[1766679062410,0.02694653,88282.0,88274.0,0.0413362]
[1766679062611,0.02694653,88281.0,88274.0,0.03]
[1766679062806,0.0113344,88289.0,88274.0,0.03]
[1766679063516,0.04063431,88290.0,88275.0,0.011336]
[1766679063724,0.0113343,88289.0,88275.0,0.011336]
[1766679064121,0.0113343,88289.0,88272.0,0.0113364]
[1766679064421,0.0113343,88289.0,88272.0,0.0413364]
[1766679065922,0.0113343,88289.0,88274.0,0.0113362]
[1766679066122,0.0113343,88289.0,88274.0,0.0413362]
[1766679068226,0.04063431,88290.0,88274.0,0.0413362]
[1766679068227,0.0113346,88287.0,88274.0,0.03]
[1766679071532,0.13848952,88302.0,88266.0,0.0403699]
[1766679071533,0.011336,88277.0,88266.0,0.0403699]
[1766679071722,0.0225739,88292.0,88266.0,0.0703699]
[1766679071921,0.0113351,88284.0,88267.0,0.0113371]
[1766679072123,0.0113351,88284.0,88267.0,0.0413371]
[1766679072632,0.0113351,88284.0,88269.0,0.0113369]
[1766679072823,0.01124,88292.0,88271.0,0.0113366]
[1766679072824,0.0113347,88287.0,88271.0,0.0113366]
[1766679073128,0.01124,88292.0,88273.0,0.0113363]
[1766679073129,0.0113343,88290.0,88273.0,0.0113363]
[1766679073329,0.0113345,88288.0,88272.0,0.0113364]
[1766679073524,0.0113345,88288.0,88272.0,0.0313364]
[1766679073834,0.0113347,88286.0,88272.0,0.0313364]
[1766679074127,0.0113347,88286.0,88272.0,0.02]
[1766679074430,0.0113341,88291.0,88272.0,0.02]
[1766679074632,0.0113354,88281.0,88272.0,0.02]
[1766679075427,0.02664586,88280.0,88272.0,0.02]
[1766679075625,0.01124,88292.0,88273.0,0.0113363]
[1766679075824,0.0113349,88285.0,88270.0,0.0113366]
[1766679076024,0.02664675,88284.0,88270.0,0.0413366]
[1766679076232,0.02664675,88283.0,88270.0,0.0413366]
[1766679076437,0.02664675,88282.0,88270.0,0.0413366]
[1766679076747,0.02664675,88281.0,88270.0,0.0982166]
[1766679077030,0.02664675,88280.0,88272.0,0.0113365]
[1766679077232,0.02666173,88279.0,88272.0,0.03]
[1766679077433,0.0113347,88286.0,88272.0,0.03]
[1766679077635,0.02666239,88285.0,88272.0,0.03]
[1766679077936,0.03799739,88284.0,88272.0,0.03]
[1766679078125,0.02666239,88283.0,88272.0,0.03]
[1766679078325,0.02666239,88282.0,88272.0,0.03]
[1766679078526,0.02666239,88281.0,88272.0,0.03]
[1766679078727,0.02666239,88280.0,88272.0,0.03]
[1766679078928,0.02666239,88279.0,88272.0,0.03]
[1766679079242,0.02666239,88278.0,88272.0,0.03]
[1766679079426,0.02666239,88277.0,88272.0,0.03]
[1766679079624,0.011335,88284.0,88272.0,0.03]
[1766679079829,0.0113364,88273.0,88267.0,0.05688]
[1766679080029,0.011336,88276.0,88259.0,0.0113381]
[1766679080236,0.02668451,88275.0,88260.0,0.05688]
[1766679080436,0.011336,88276.0,88260.0,0.08688]
[1766679080631,0.02668773,88275.0,88260.0,0.08688]
[1766679080934,0.0115059,88276.0,88261.0,0.0113379]
[1766679081135,0.02668773,88275.0,88261.0,0.0413379]
[1766679081335,0.0266909,88274.0,88261.0,0.0413379]
[1766679081641,0.02668959,88273.0,88261.0,0.03]
[1766679081940,0.0113368,88270.0,88261.0,0.03]
[1766679082237,0.02668959,88269.0,88261.0,0.03]
[1766679082436,0.0113365,88273.0,88261.0,0.03]
[1766679082643,0.02668661,88272.0,88261.0,0.03]
[1766679082832,0.02668661,88271.0,88261.0,0.03]
[1766679083033,1e-08,88270.0,88261.0,0.03]
[1766679083233,0.04063431,88282.0,88261.0,0.03]
[1766679084245,0.04063431,88282.0,88269.0,0.0113368]
[1766679084443,0.04063431,88283.0,88270.0,0.0113367]
[1766679084631,0.04063431,88283.0,88270.0,0.03]
[1766679085136,0.04063431,88283.0,88273.0,0.0113363]
[1766679089344,0.04063431,88283.0,88270.0,0.0113367]
[1766679089942,0.04063431,88283.0,88272.0,0.0113364]
[1766679092546,0.04063431,88283.0,88268.0,0.09636]
[1766679093842,0.011334,88292.0,88277.0,0.0113358]
[1766679094140,0.06120469,88295.0,88278.0,0.1645756]
[1766679094345,0.0113337,88294.0,88278.0,0.1645756]
[1766679095148,0.02593563,88293.0,88278.0,0.1645756]
[1766679095348,0.02593563,88292.0,88280.0,0.0113354]
[1766679095645,0.02593563,88291.0,88280.0,0.02932821]
[1766679095847,0.09636,88309.0,88280.0,0.0413354]
[1766679096434,0.0113332,88298.0,88281.0,0.0113353]
[1766679096638,0.10790345,88309.0,88281.0,0.0113353]
[1766679096639,0.0113334,88296.0,88281.0,0.0413353]
[1766679096835,0.0113334,88296.0,88281.0,0.0113353]
[1766679097248,0.0113334,88296.0,88278.0,0.1405753]
[1766679097446,0.0113334,88296.0,88278.0,0.1705753]
[1766679097648,0.0113334,88296.0,88281.0,0.0113353]
[1766679097948,0.0113334,88296.0,88278.0,0.1519109]
[1766679098149,0.0113334,88296.0,88278.0,0.1819109]
[1766679099551,0.0113334,88296.0,88280.0,0.0113354]
[1766679099748,0.0113334,88296.0,88280.0,0.0413354]
[1766679099943,0.0113334,88296.0,88280.0,0.1184228]
[1766679100149,0.0113337,88294.0,88280.0,0.1184228]
[1766679100350,0.0113337,88294.0,88280.0,0.1070874]
[1766679100544,0.0113337,88294.0,88280.0,0.0770874]
[1766679100738,0.0113322,88306.0,88280.0,0.0770874]
[1766679100944,0.0113324,88304.0,88280.0,0.1070874]
[1766679101145,0.0113338,88294.0,88280.0,0.1070874]
[1766679101354,0.0113338,88294.0,88280.0,0.0770874]
[1766679101852,0.011334,88292.0,88280.0,0.1070874]
[1766679102054,0.0113336,88295.0,88280.0,0.0770874]
[1766679102443,0.0113338,88293.0,88280.0,0.0770874]
[1766679102946,0.0113334,88296.0,88280.0,0.0770874]
[1766679103656,0.0113334,88296.0,88281.0,0.0113353]
[1766679103953,0.0113337,88294.0,88281.0,0.0113353]
[1766679104538,0.0113337,88294.0,88282.0,0.09636]
[1766679105852,0.0113337,88294.0,88281.0,0.0113353]
[1766679107854,0.02514844,88293.0,88281.0,0.0113353]
[1766679108153,0.02514844,88292.0,88281.0,0.0113353]
[1766679108351,0.0113337,88294.0,88281.0,0.0113353]
[1766679108352,0.02514844,88291.0,88281.0,0.0113353]
[1766679108651,0.02514844,88290.0,88281.0,0.0113353]
[1766679108849,0.02514844,88289.0,88281.0,0.0113353]
[1766679109040,0.02514844,88288.0,88281.0,0.0113353]
[1766679109244,0.02514844,88287.0,88281.0,0.0113353]
[1766679109543,0.02514844,88286.0,88281.0,0.0113353]
[1766679109854,0.02514844,88285.0,88281.0,0.0113353]
[1766679110056,0.011334,88292.0,88278.0,0.0682156]
[1766679110352,0.011334,88292.0,88278.0,0.0882156]
[1766679111450,0.0113336,88295.0,88278.0,0.0882156]
[1766679112154,0.0113336,88295.0,88280.0,0.0770874]
[1766679115159,0.0113336,88295.0,88280.0,0.0884228]
[1766679115858,0.06120696,88292.0,88280.0,0.0884228]
[1766679116158,0.06120696,88293.0,88280.0,0.0884228]
[1766679116670,0.06120696,88293.0,88280.0,0.0113354]
[1766679116854,0.06120696,88293.0,88280.0,0.0770874]
[1766679117563,0.0113343,88290.0,88278.0,0.05688]
[1766679117760,0.06120696,88293.0,88278.0,0.05688]
[1766679118061,0.06120696,88292.0,88278.0,0.05688]
[1766679118463,0.06120696,88292.0,88278.0,0.08688]
[1766679118854,0.15868668,88300.0,88278.0,0.08688]
[1766679118855,0.0770874,88300.0,88278.0,0.05688]
[1766679119062,0.0113348,88285.0,88278.0,0.05688]
[1766679119459,0.0113345,88288.0,88278.0,0.05688]
[1766679120863,0.0113349,88285.0,88278.0,0.05688]
[1766679122059,0.02450213,88284.0,88278.0,0.05688]
[1766679122265,0.02450213,88283.0,88278.0,0.05688]
[1766679122465,0.02450213,88282.0,88278.0,0.05688]
[1766679122765,0.02450213,88281.0,88278.0,0.05688]
[1766679122967,0.0113345,88288.0,88278.0,0.05688]
[1766679123570,0.0113351,88284.0,88278.0,0.05688]
[1766679124166,0.0113338,88294.0,88276.0,0.0001699]
[1766679124470,0.04082709,88295.0,88270.0,0.0770874]
[1766679124471,0.0113352,88283.0,88270.0,0.0770874]
[1766679124665,0.0113348,88286.0,88271.0,0.0682166]
[1766679124866,0.0113345,88288.0,88273.0,0.0113363]
[1766679125268,0.0113341,88291.0,88273.0,0.0113363]
[1766679125571,0.0115043,88289.0,88273.0,0.0113363]
[1766679126071,0.0113346,88287.0,88273.0,0.0113363]
[1766679131163,0.0001699,88289.0,88274.0,0.0113362]
[1766679132069,0.0001699,88289.0,88272.0,0.0001699]
[1766679132375,0.0113347,88287.0,88273.0,0.0113363]
[1766679133076,0.0001699,88289.0,88275.0,0.0113361]
[1766679133674,0.0001699,88289.0,88272.0,0.0001699]
[1766679134176,0.0113348,88286.0,88272.0,0.0001699]
[1766679135477,0.0113348,88286.0,88272.0,0.0115064]
[1766679136576,0.0113348,88286.0,88272.0,0.0001699]
[1766679137073,0.0113348,88286.0,88272.0,0.0301699]
[1766679137281,0.0113348,88286.0,88272.0,0.0001699]
[1766679137572,0.04082709,88288.0,88273.0,0.0113363]
[1766679137778,0.0113346,88287.0,88273.0,0.0113363]
[1766679138578,0.04082709,88288.0,88275.0,0.0113361]
[1766679138980,0.0001699,88289.0,88277.0,0.0113358]
[1766679139182,0.0001699,88289.0,88277.0,0.0413358]
[1766679139473,0.0001699,88289.0,88279.0,0.0113356]
[1766679139677,0.0001699,88289.0,88280.0,0.05688]
[1766679139875,0.04082709,88290.0,88280.0,0.05688]
[1766679141780,0.05216129,88290.0,88280.0,0.05688]
[1766679142172,0.04082709,88290.0,88280.0,0.05688]
[1766679144484,0.0113336,88295.0,88280.0,0.05688]
[1766679145275,0.07254036,88296.0,88281.0,0.0113353]
[1766679145484,0.0113334,88296.0,88281.0,0.0113353]
[1766679146084,0.0113337,88294.0,88280.0,0.05688]
[1766679146383,0.011334,88292.0,88280.0,0.05688]
[1766679147182,0.06120696,88297.0,88280.0,0.05688]
[1766679147183,0.0113343,88290.0,88280.0,0.05688]
[1766679148772,0.0113339,88293.0,88280.0,0.05688]
[1766679150583,0.0113336,88295.0,88281.0,0.0113353]
[1766679150777,0.0113342,88290.0,88280.0,0.05688]
[1766679150978,0.0113341,88291.0,88280.0,0.05688]
[1766679153587,0.0113338,88294.0,88280.0,0.05688]
[1766679154590,0.06120696,88297.0,88280.0,0.05688]
[1766679155082,0.0113347,88287.0,88280.0,0.05688]
[1766679155988,0.06120696,88294.0,88280.0,0.05688]
[1766679156180,0.06120696,88295.0,88280.0,0.05688]
[1766679156587,0.0113341,88291.0,88280.0,0.05688]
[1766679157178,0.06120696,88295.0,88280.0,0.05688]
[1766679157689,0.0113344,88289.0,88280.0,0.05688]
[1766679158184,0.0113349,88285.0,88280.0,0.05688]
[1766679158488,0.0113345,88288.0,88280.0,0.05688]
[1766679161084,0.0113342,88291.0,88280.0,0.05688]
[1766679161275,0.09293178,88303.0,88280.0,0.1453028]
[1766679161276,0.07254056,88295.0,88280.0,0.1453028]
[1766679161476,0.0113336,88295.0,88281.0,0.0113353]
[1766679161682,0.0113338,88293.0,88280.0,0.05688]
[1766679161888,0.0113341,88291.0,88280.0,0.05688]
[1766679162087,0.06120696,88295.0,88280.0,0.05688]
[1766679162278,0.0113345,88288.0,88280.0,0.05688]
[1766679162993,0.07254046,88296.0,88280.0,0.0682154]
[1766679163184,0.0113338,88294.0,88280.0,0.0682154]
[1766679164693,0.07254046,88296.0,88282.0,0.0113351]
[1766679165594,0.06120696,88296.0,88280.0,0.05688]
[1766679167394,0.0113339,88293.0,88280.0,0.05688]
[1766679168589,0.06120696,88296.0,88280.0,0.0682154]
[1766679168785,0.0113337,88294.0,88280.0,0.0682154]
[1766679169395,0.0113337,88294.0,88280.0,0.05688]
[1766679169590,0.0113341,88291.0,88280.0,0.05688]
[1766679169894,0.0113343,88289.0,88280.0,0.05688]
[1766679171700,0.011334,88292.0,88280.0,0.05688]
[1766679171893,0.0113342,88290.0,88280.0,0.05688]
[1766679172293,0.0113342,88290.0,88277.0,0.0113358]
[1766679172496,0.0113342,88290.0,88278.0,0.05688]
[1766679172998,0.0113339,88293.0,88278.0,0.05688]
[1766679173609,0.0113339,88293.0,88279.0,0.0113355]
[1766679174318,0.04082059,88291.0,88279.0,0.0113355]
[1766679176509,0.04082059,88291.0,88278.0,0.05688]
[1766679177114,0.05215469,88291.0,88278.0,0.05688]
[1766679178219,0.04082059,88291.0,88278.0,0.0682157]
[1766679179413,0.04082059,88291.0,88278.0,0.05688]
[1766679181228,0.04082059,88291.0,88280.0,0.0113354]
[1766679181417,0.04082059,88291.0,88278.0,0.05688]
[1766679182021,0.0113342,88290.0,88278.0,0.05688]
[1766679182222,0.04082059,88291.0,88278.0,0.0682157]
[1766679183127,0.00226469,88313.0,88279.0,0.0113356]
[1766679183418,0.0113293,88328.0,88279.0,0.0113356]
[1766679183419,0.0113288,88333.0,88301.0,0.0113327]
[1766679183611,0.0113307,88318.0,88305.0,0.0001699]
[1766679183815,0.0113307,88318.0,88305.0,0.0301699]
[1766679184015,0.01312402,88331.0,88305.0,0.0001699]
[1766679184016,0.0113298,88324.0,88305.0,0.0001699]
[1766679184417,0.011332,88308.0,88306.0,0.05688]
[1766679184720,0.0113301,88323.0,88307.0,0.05688]
[1766679184920,0.0113301,88323.0,88292.0,0.67472]
[1766679184921,0.0113322,88306.0,88292.0,0.67472]
[1766679185125,0.0113325,88304.0,88293.0,0.05688]
[1766679185321,0.0113329,88300.0,88293.0,0.08688]
[1766679185520,0.0113329,88300.0,88292.0,0.67472]
[1766679185521,0.0113334,88297.0,88290.0,0.0001699]
[1766679185711,0.0001699,88307.0,88291.0,0.05684]
[1766679185911,0.0001699,88307.0,88268.0,0.04081781]
[1766679186123,0.0113336,88295.0,88276.0,0.0113359]
[1766679186327,0.0113336,88295.0,88276.0,0.0413359]
[1766679186923,0.0113336,88295.0,88278.0,0.0113357]
[1766679187124,0.0113334,88297.0,88281.0,0.0113353]
[1766679187310,0.0001699,88307.0,88281.0,0.03]
[1766679187512,0.0113345,88288.0,88281.0,0.03]
[1766679187717,0.0113345,88288.0,88282.0,0.05684]
[1766679187918,0.0113341,88291.0,88282.0,0.08684]
[1766679188222,0.0113337,88294.0,88282.0,0.08684]
[1766679188421,0.0113333,88297.0,88282.0,0.08684]
[1766679189320,0.0113329,88300.0,88282.0,0.0981751]
[1766679189529,0.0113326,88303.0,88286.0,0.0113346]
[1766679190731,0.0115019,88307.0,88290.0,0.0113341]
[1766679191332,0.0115019,88307.0,88291.0,0.05684]
[1766679192031,0.0113323,88305.0,88291.0,0.05684]
[1766679194328,0.0001699,88307.0,88292.0,0.0113339]
[1766679194720,0.0113321,88306.0,88292.0,0.0113339]
[1766679195333,0.0001699,88307.0,88292.0,0.0113339]
[1766679195727,0.0001699,88307.0,88295.0,0.0113335]
[1766679196430,0.0001699,88307.0,88295.0,0.03]
[1766679196730,0.00022643,88326.0,88297.0,0.0113333]
[1766679196935,0.011331,88316.0,88299.0,0.011333]
[1766679197122,0.0113305,88319.0,88301.0,0.0113327]
[1766679197322,0.0113305,88319.0,88302.0,0.05684]
[1766679197518,0.0115004,88319.0,88302.0,0.0870099]
[1766679197723,0.0115004,88319.0,88302.0,0.0570099]
[1766679198531,0.0113308,88317.0,88302.0,0.0570099]
[1766679199231,0.0113306,88318.0,88302.0,0.0570099]
[1766679199634,0.0113306,88318.0,88302.0,0.0683425]
[1766679199829,0.0001699,88319.0,88302.0,0.0683425]
[1766679199830,0.0001699,88319.0,88305.0,0.0113322]
[1766679200131,0.0115004,88319.0,88305.0,0.0413322]
[1766679200522,0.00022643,88326.0,88308.0,0.0113318]
[1766679200725,0.0113291,88330.0,88313.0,0.0113311]
[1766679200926,0.0113287,88333.0,88316.0,0.0113308]
[1766679201127,0.01530061,88343.0,88316.0,0.03]
[1766679201323,0.01530061,88343.0,88316.0,0.0413307]
[1766679201733,0.0113289,88332.0,88321.0,0.0001699]
[1766679202232,0.00226392,88343.0,88322.0,0.0113301]
[1766679202431,0.0113277,88341.0,88324.0,0.0113297]
[1766679202731,0.00226392,88343.0,88326.0,0.0113295]
[1766679202934,0.0113246,88365.0,88332.0,0.0113288]
[1766679203138,0.0113266,88350.0,88340.0,0.00016979]
[1766679203331,0.0113266,88350.0,88341.0,0.05684]
[1766679204829,0.02451956,88359.0,88342.0,0.05684]
[1766679205025,0.0113264,88352.0,88316.0,0.0113307]
[1766679205324,0.0113283,88336.0,88318.0,0.0113306]
[1766679205529,0.0113283,88336.0,88318.0,0.0413306]
[1766679205926,0.0113283,88336.0,88318.0,0.04150039]
[1766679205927,0.01149771,88336.0,88318.0,0.04150039]
[1766679206335,0.00016941,88336.0,88318.0,0.04150039]
[1766679209141,0.00016941,88336.0,88320.0,0.0113303]
[1766679209344,0.00016941,88336.0,88320.0,0.0413303]
[1766679210743,0.00016941,88336.0,88320.0,0.03]
[1766679211047,0.0113269,88348.0,88329.0,0.0113291]
[1766679211252,0.011325,88362.0,88331.0,0.0113289]
[1766679211253,0.0113264,88351.0,88331.0,0.0113289]
[1766679211436,0.0113264,88351.0,88331.0,0.0413289]
[1766679211744,0.0113264,88351.0,88331.0,0.0113289]
[1766679211951,0.0113264,88351.0,88332.0,0.00016979]
[1766679212941,0.0113264,88351.0,88333.0,0.0113287]
[1766679213146,0.011326,88354.0,88335.0,0.0113283]
[1766679213445,0.0113241,88369.0,88337.0,0.0113281]
[1766679213446,0.0113256,88357.0,88337.0,0.0113281]
[1766679214247,0.040549,88367.0,88337.0,0.0113281]
[1766679214248,0.0113259,88355.0,88337.0,0.0113281]
[1766679214740,0.0113262,88353.0,88337.0,0.0113281]
[1766679215348,0.0113257,88356.0,88337.0,0.0113281]
[1766679215843,0.011326,88354.0,88337.0,0.0113281]
[1766679217350,0.01496111,88362.0,88336.0,0.0021]
[1766679217551,0.0113248,88363.0,88336.0,0.0021]
[1766679217952,0.0113263,88352.0,88336.0,0.0021]
[1766679218454,0.0113273,88344.0,88336.0,0.0021]
[1766679218853,0.0113276,88342.0,88336.0,0.0021]
[1766679219451,0.011326,88354.0,88336.0,0.0021]
[1766679219759,0.0113272,88345.0,88336.0,0.0021]
[1766679220959,0.0113252,88361.0,88336.0,0.0021]
[1766679220960,0.0113274,88343.0,88336.0,0.0021]
[1766679221457,0.0113271,88346.0,88336.0,0.0021]
[1766679221852,0.0113252,88361.0,88337.0,0.0568]
[1766679221853,0.0113274,88344.0,88337.0,0.0568]
[1766679222058,0.0113274,88344.0,88338.0,0.0568]
[1766679223772,0.0113269,88347.0,88339.0,0.0021]
[1766679224767,0.0113256,88358.0,88339.0,0.0021]
[1766679224986,0.0113282,88337.0,88332.0,9e-08]
[1766679225159,0.0113282,88337.0,88333.0,0.0568]
[1766679225360,0.0113282,88337.0,88334.0,0.0568]
[1766679225559,0.0113282,88337.0,88335.0,0.0568]
[1766679225756,0.0113282,88337.0,88336.0,0.0568]
[1766679226571,0.0113285,88335.0,88328.0,0.00016979]
[1766679226766,0.0113281,88338.0,88329.0,0.0568]
[1766679229874,0.0113284,88336.0,88329.0,0.0568]
[1766679230561,0.011328,88339.0,88329.0,0.0568]
[1766679231772,0.00016979,88345.0,88329.0,0.0568]
[1766679231981,0.00016979,88345.0,88329.0,0.13379009]
[1766679232370,0.0113273,88344.0,88329.0,0.13379009]
[1766679232570,0.00016979,88345.0,88329.0,0.15379009]
[1766679232872,0.01149699,88345.0,88329.0,0.15379009]
[1766679233078,0.01149699,88345.0,88329.0,0.0768]
[1766679233377,0.0113275,88343.0,88330.0,0.07699009]
[1766679234479,0.0113275,88343.0,88329.0,0.0568]
[1766679234778,0.0113277,88341.0,88329.0,0.0768]
[1766679235877,0.0113282,88337.0,88329.0,0.0568]
[1766679236467,0.00016979,88345.0,88329.0,0.0568]
[1766679236468,0.0113277,88341.0,88329.0,0.0568]
[1766679237074,0.00016979,88345.0,88329.0,0.0568]
[1766679237268,0.0113273,88344.0,88330.0,0.07699009]
[1766679237471,0.040549,88349.0,88334.0,0.0113285]
[1766679237670,0.011327,88347.0,88329.0,0.0568]
[1766679237980,0.011327,88347.0,88330.0,0.07699009]
[1766679238384,0.011327,88347.0,88330.0,0.08831909]
[1766679239677,0.011327,88347.0,88330.0,0.011329]
[1766679239875,0.040549,88350.0,88329.0,0.0568]
[1766679240083,0.040549,88349.0,88329.0,0.0768]
[1766679240583,0.0113272,88345.0,88329.0,0.0313291]
[1766679240779,0.0113268,88348.0,88331.0,0.0113289]
[1766679241469,0.0113268,88348.0,88332.0,0.0568]
[1766679241668,0.0113268,88348.0,88331.0,0.0113289]
[1766679241883,0.0518758,88348.0,88331.0,0.0113289]
[1766679242078,0.0518758,88348.0,88332.0,0.0568]
[1766679242580,0.0518758,88348.0,88331.0,0.0113289]
[1766679242783,0.0518758,88348.0,88332.0,0.0568]
[1766679243483,0.0518758,88348.0,88333.0,0.0568]
[1766679243979,0.0113268,88348.0,88333.0,0.0568]
[1766679245285,0.040549,88347.0,88333.0,0.0568]
[1766679246386,0.040549,88347.0,88334.0,0.0113285]
[1766679247578,0.040549,88347.0,88333.0,0.0568]
[1766679248384,0.040549,88347.0,88333.0,0.0681286]
[1766679248690,0.040549,88351.0,88337.0,0.0113281]
[1766679249189,0.0518754,88351.0,88337.0,0.0113281]
[1766679249381,0.0518754,88351.0,88334.0,0.0113285]
[1766679250287,0.0113271,88346.0,88333.0,0.0568]
[1766679253278,0.0113271,88346.0,88333.0,0.0668]
[1766679255193,0.040549,88355.0,88333.0,0.0668]
[1766679255396,0.040549,88354.0,88333.0,0.0668]
[1766679255693,0.0113269,88347.0,88333.0,0.0668]
[1766679257395,0.0113269,88347.0,88334.0,0.0113285]
[1766679257698,0.0113266,88350.0,88334.0,0.0113285]
[1766679257893,0.040549,88356.0,88340.0,0.07699009]
[1766679258097,0.0113247,88364.0,88347.0,0.0113268]
[1766679258392,0.0113247,88364.0,88350.0,0.08831659]
[1766679258989,0.00022632,88370.0,88350.0,0.07699009]
[1766679259190,0.0113242,88368.0,88351.0,0.0113264]
[1766679259390,0.0113242,88368.0,88350.0,0.07531649]
[1766679259592,0.0113242,88368.0,88351.0,0.0113264]
[1766679259793,0.0113245,88366.0,88351.0,0.0113264]
[1766679261092,0.00022632,88370.0,88350.0,0.07531649]
[1766679261288,0.0113242,88368.0,88350.0,0.08664289]
[1766679261493,0.0113242,88368.0,88353.0,0.011326]
[1766679262501,0.0113242,88368.0,88350.0,0.08831649]
[1766679262701,0.0113242,88368.0,88352.0,0.0113261]
[1766679263204,0.00022632,88370.0,88354.0,0.0113259]
[1766679263399,0.00226315,88373.0,88360.0,0.07699009]
[1766679263701,3.15e-06,88373.0,88361.0,0.0568]
[1766679264107,3.15e-06,88373.0,88361.0,0.0868]
[1766679264595,0.0113221,88384.0,88361.0,0.0868]
[1766679264802,0.0113221,88384.0,88370.0,0.07699009]
[1766679265003,0.0113221,88384.0,88371.0,0.0568]
[1766679265204,0.07545834,88393.0,88372.0,0.0568]
[1766679265394,0.07545834,88393.0,88373.0,0.0568]
[1766679265395,0.0113234,88374.0,88373.0,0.0568]
[1766679265595,0.0113234,88374.0,88373.0,1e-08]
[1766679265802,0.0113234,88374.0,88360.0,0.07699009]
[1766679265803,0.0113247,88365.0,88360.0,0.07699009]
[1766679266105,0.0113247,88365.0,88349.0,0.0113265]
[1766679266106,0.0113247,88365.0,88361.0,0.0568]
[1766679266305,0.0113242,88368.0,88361.0,0.0568]
[1766679269300,0.00016979,88372.0,88362.0,0.0568]
[1766679269504,0.00016979,88372.0,88363.0,0.0568]
[1766679269802,0.0113249,88363.0,88354.0,9e-08]
[1766679270106,0.0113249,88363.0,88354.0,0.03000009]
[1766679270306,0.0113249,88363.0,88355.0,0.0568]
[1766679270506,0.0113245,88366.0,88355.0,0.0868]
[1766679271007,0.0113245,88366.0,88355.0,0.03]
[1766679271208,0.0113245,88366.0,88356.0,0.0568]
[1766679271414,0.00016979,88372.0,88356.0,0.0568]
[1766679271415,0.0113248,88364.0,88356.0,0.03]
[1766679271806,0.0113248,88364.0,88357.0,0.0568]
[1766679272002,0.0113248,88364.0,88357.0,0.03]
[1766679272202,0.0113248,88364.0,88358.0,0.0568]
[1766679272402,0.0113251,88362.0,88354.0,9e-08]
[1766679272708,0.0113249,88363.0,88355.0,0.0568]
[1766679272911,0.0113249,88363.0,88355.0,0.03]
[1766679273411,0.0113249,88363.0,88356.0,0.0568]
[1766679273917,0.00016979,88372.0,88356.0,0.0568]
[1766679273918,0.0113245,88366.0,88356.0,0.0568]
[1766679275421,0.00016979,88372.0,88356.0,0.0568]
[1766679275713,0.0113245,88366.0,88356.0,0.0568]
[1766679277213,0.0113247,88364.0,88356.0,0.0568]
[1766679277512,0.0113244,88367.0,88356.0,0.0568]
[1766679280509,0.00016979,88372.0,88356.0,0.0568]
[1766679280711,0.011323,88378.0,88360.0,0.07699009]
[1766679280917,0.0113228,88379.0,88362.0,0.0113249]
[1766679281118,0.0113228,88379.0,88364.0,0.0113246]
[1766679281319,0.0113228,88379.0,88365.0,0.0568]
[1766679283906,0.0113231,88377.0,88365.0,0.0568]
[1766679284602,0.0001697,88381.0,88365.0,0.0568]
[1766679285214,0.0113234,88374.0,88365.0,0.0568]
[1766679285607,0.0113238,88371.0,88365.0,0.0568]
[1766679285912,0.0113242,88368.0,88354.0,9e-08]
[1766679286117,0.0113242,88368.0,88355.0,0.0568]
[1766679286307,0.0113242,88368.0,88355.0,0.0868]
[1766679286506,0.0113229,88379.0,88355.0,0.0868]
[1766679286706,0.011324,88370.0,88355.0,0.0868]
[1766679287317,0.011324,88370.0,88356.0,0.0113257]
[1766679287518,0.011324,88370.0,88356.0,0.0413257]
[1766679289219,0.0113236,88373.0,88356.0,0.0413257]
[1766679290613,0.0113238,88371.0,88356.0,0.0413257]
[1766679291321,0.0113238,88371.0,88358.0,0.0113254]
[1766679291516,0.0113238,88371.0,88358.0,0.0313254]
[1766679291722,0.0113238,88371.0,88358.0,0.0113254]
[1766679292320,0.0113238,88371.0,88355.0,0.0681257]
[1766679292512,0.0113238,88371.0,88355.0,0.0981257]
[1766679292712,0.0113241,88369.0,88355.0,0.0868]
[1766679292924,0.0113241,88369.0,88355.0,0.0981258]
[1766679294630,0.0113237,88372.0,88357.0,0.0113255]
[1766679294812,0.0113237,88372.0,88357.0,0.0413255]
[1766679295108,0.0113228,88379.0,88357.0,0.0413255]
[1766679295822,0.0113241,88369.0,88357.0,0.03]
[1766679296513,0.0113241,88369.0,88358.0,0.0568]
[1766679297009,0.0113241,88369.0,88356.0,0.0113257]
[1766679297215,0.0113241,88369.0,88357.0,0.0568]
[1766679297418,0.0113241,88369.0,88358.0,0.0568]
[1766679297622,0.0113238,88372.0,88359.0,0.0568]
[1766679302031,0.0113234,88375.0,88359.0,0.0568]
[1766679302227,0.0113228,88379.0,88359.0,0.0568]
[1766679302530,0.0113241,88369.0,88359.0,0.0568]
[1766679303027,0.06095698,88380.0,88359.0,0.0568]
[1766679303430,0.0113241,88369.0,88359.0,0.0568]
[1766679304235,0.011325,88362.0,88354.0,9e-08]
[1766679304530,0.0113249,88363.0,88355.0,0.0568]
[1766679304732,0.0113245,88366.0,88355.0,0.0568]
[1766679306435,0.06095698,88378.0,88355.0,0.0568]
[1766679306436,0.0113238,88371.0,88357.0,0.0113256]
[1766679307133,0.0001697,88381.0,88357.0,0.0113256]
[1766679307134,0.0113228,88379.0,88365.0,0.0113245]
[1766679307430,0.0113228,88379.0,88366.0,0.0568]
[1766679308022,0.0113231,88377.0,88366.0,0.0568]
[1766679309631,0.0001697,88381.0,88367.0,0.0568]
[1766679309828,0.0113227,88380.0,88368.0,0.0568]
[1766679310030,0.0113241,88369.0,88356.0,0.0113257]
[1766679310232,0.0113241,88369.0,88357.0,0.0568]
[1766679310433,0.0113241,88369.0,88357.0,0.0868]
[1766679312526,0.0113227,88380.0,88357.0,0.0868]
[1766679312721,0.0113228,88379.0,88357.0,0.0868]
[1766679313532,0.0001697,88381.0,88357.0,0.0868]
[1766679314337,0.011324,88370.0,88357.0,0.0868]
[1766679314733,0.0113243,88368.0,88357.0,0.0868]
[1766679315139,0.0001697,88381.0,88357.0,0.0868]
[1766679315340,0.0001697,88381.0,88358.0,0.0113254]
[1766679315543,0.0001697,88381.0,88360.0,0.0113251]
[1766679316737,0.0113235,88374.0,88360.0,0.0113251]
[1766679317332,0.0113235,88374.0,88357.0,0.0681255]
[1766679317534,0.0113235,88374.0,88359.0,0.0113253]
[1766679318542,0.0113237,88372.0,88359.0,0.0113253]
[1766679320434,0.0113234,88375.0,88359.0,0.0113253]